Cogmind - Beta 14 @@@ ROGUE MODE // 2024.10.27 @ 19:55:11 Player: toydarian Result: Destroyed by S-10 Pest with Light Assault Rifle Performance ------------- Evolutions (0) 0 Regions Visited (2) 400 Robots Destroyed (21) 105 Value Destroyed (405) 405 Prototype IDs (0) 0 Alien Tech Used (0) 0 Bonus (0) 0 TOTAL SCORE: 910 Bonus ------- None Cogmind --------- Core Integrity 0/250 Matter 298/300 Energy 250/250 System Corruption 0% Temperature Cool (0) Movement Treading (240) Ox1 Location -10/Mines Parts ------- > --- POWER (1) -------- Ion Engine > --- PROPULSION (2) --- Light Treads Light Treads > --- UTILITY (2) ------ High-capacity Storage Unit Core Shielding > --- WEAPON (2) ------- Light Assault Rifle Light Assault Rifle > --- INVENTORY (20) --- Ion Engine Light Ion Engine Aluminum Leg Aluminum Leg Aluminum Leg Compact Wheel Compact Wheel Heat Sink Structural Scanner Medium Laser Small Laser Small Laser Small Laser Particle Gun Particle Gun Light Assault Rifle Shotgun Peak State ------------ > --- POWER ------------ Ion Engine > --- PROPULSION ------- Light Treads Light Treads > --- UTILITY ---------- High-capacity Storage Unit Core Shielding > --- WEAPON ----------- Medium Laser Light Assault Rifle > --- INVENTORY -------- Ion Engine Light Ion Engine Aluminum Leg Aluminum Leg Aluminum Leg Compact Wheel Compact Wheel Heat Sink Structural Scanner Small Laser Small Laser Small Laser Particle Gun Particle Gun Light Assault Rifle Light Assault Rifle Shotgun [Rating: 9] Favorites ----------- Power Ion Engine Engine Ion Engine Propulsion Light Treads Treads Light Treads Leg Aluminum Leg Utility High-capacity Storage Unit Device Heat Sink Storage High-capacity Storage Unit Protection Core Shielding Weapon Small Laser Energy Gun Small Laser Ballistic Gun Light Assault Rifle Build | -11 -10 -10 ------- Run | Yrd Mat Min Slots Evolved . | . . . Power . | . . . Propulsion . | . . . Utility . | . . . Weapon . | . . . Parts Attached 22 | 5 11 6 Power 3 | 1 2 . Engine 3 | 1 2 . Core . | . . . Reactor . | . . . Propulsion 7 | 2 5 . Treads 5 | 2 3 . Leg 2 | . 2 . Wheel . | . . . Hover . | . . . Flight . | . . . Utility 4 | 1 1 2 Device 1 | . . 1 Storage 2 | 1 1 . Processor . | . . . Hackware . | . . . Protection 1 | . . 1 Artifact . | . . . Weapon 8 | 1 3 4 Energy Gun 4 | 1 2 1 Energy Cannon . | . . . Ballistic Gun 4 | . 1 3 Ballistic Cannon . | . . . Launcher . | . . . Special Weapon . | . . . Impact Weapon . | . . . Slashing Weapon . | . . . Piercing Weapon . | . . . Special Melee Weapon . | . . . Unidentified Prototypes . | . . . Parts Lost 3 | . 3 . Power 1 | . 1 . Propulsion 1 | . 1 . Utility . | . . . Weapon 1 | . 1 . Highest Loss Streak 2 | . 2 . To Critical Strikes . | . . . Average Slot Usage (%) 90 | . 84 98 Engine 13 | . 13 14 Treads 27 | . 27 28 Storage 14 | . 14 14 Protection 4 | . . 11 Energy Gun 20 | . 27 9 Ballistic Gun 7 | . . 18 Peak Build Rating 9 | 5 7 9 Average Rating 7 | 3 6 8 On Entrance 4 | . 5 7 Naked Turns . | . . . Heaviest Build 49 | 11 47 49 Greatest Support 40 | 40 40 40 Greatest Overweight (x) 2 | . 2 1 Average Overweight (x) . | . . 1 Largest Inventory Capacity 20 | 8 20 20 Average Capacity 18 | 6 18 20 Most Carried 17 | 7 12 17 Average Carried 11 | 5 9 15 Final Capacity 20 | 8 20 20 Final Carried 17 | 7 12 17 Class Distribution -------------------- 100% | Mutant Dominant Class ---------------- Mutant | -10/Materials Mutant | -10/Mines Resources | -11 -10 -10 ----------- Run | Yrd Mat Min Matter Collected 430 | 250 105 75 Remotely . | . . . Salvage Created 613 | . 391 222 Parts 41 | . 24 17 Haulers Intercepted 1 | . 1 . Recyclers Shooed 2 | . 1 1 Parts Field Recycled . | . . . Retrieved Matter . | . . . Parts Self-Destructed . | . . . Prevented . | . . . Kills | -11 -10 -10 ------- Run | Yrd Mat Min Combat Hostiles Destroyed 19 | . 10 9 Guns 19 | . 10 9 Classes Destroyed 4 | . 4 . Hauler 1 | . 1 . Recycler 1 | . 1 . Swarmer 12 | . 6 6 Grunt 7 | . 4 3 Best Kill Streak 4 | . 4 2 Combat Bots Only 3 | . 3 2 Max Kills in Single Turn 1 | . 1 1 Gunslinging . | . . . Exploded . | . . . Melee . | . . . Uniques/NPCs Destroyed . | . . . Combat | -11 -10 -10 -------- Run | Yrd Mat Min Hostile Shots Fired 128 | . 90 38 Missed 35 | . 22 13 Damage Taken 995 | . 748 247 Core 250 | . 197 53 Absorbed by Shields . | . . . Redirected to Shielding 11 | . . 11 Core Remaining (%) 100 | 100 . . Volleys Fired 52 | . 33 19 Largest 2 | . 2 2 Hottest 80 | . 80 80 Shots Fired 104 | . 66 38 Gun 104 | . 66 38 Cannon . | . . . Launcher . | . . . Special . | . . . Kinetic 22 | . 5 17 Thermal 82 | . 61 21 Explosive . | . . . Electromagnetic . | . . . Robot Hit Streak 10 | . 10 6 Robot Miss Streak 4 | . 4 3 Penetration Max . | . . . Secondary Targets 3 | . 2 1 Max Gunslinging Chain 1 | . 1 1 Shots Hit Robots 66 | . 42 24 Core Hits 34 | . 19 15 Critical Kills . | . . . Critical Parts Destroyed . | . . . Critical Strikes . | . . . Melee Attacks . | . . . Impact . | . . . Slashing . | . . . Piercing . | . . . Sneak Attacks . | . . . Combat Hostiles . | . . . Follow-up Attacks . | . . . Damage Inflicted 698 | . 444 254 Guns 698 | . 444 254 Cannons . | . . . Explosions . | . . . Melee . | . . . Ramming . | . . . Kinetic 84 | . 23 61 Thermal 614 | . 421 193 Explosive . | . . . Electromagnetic . | . . . Impact . | . . . Slashing . | . . . Piercing . | . . . Highest Corruption . | . . . Average Corruption . | . . . Corruption Purged . | . . . Corruption Blocked . | . . . Overload Shots . | . . . Overflow Damage . | . . . Projectiles . | . . . Explosions . | . . . Melee . | . . . Knockbacks . | . . . Impact . | . . . Kinetic . | . . . Secondary . | . . . Self-Inflicted Damage . | . . . Shots . | . . . Rammed . | . . . Targets Rammed . | . . . Kicked . | . . . Crushed . | . . . Highest Temperature 229 | . 229 117 Average Temperature 66 | . 75 44 Received Heat Transfer 363 | . 303 60 Siege Activations . | . . . Robots Corrupted . | . . . Combat Hostiles . | . . . Parts Fried . | . . . Impact Corruptions . | . . . Robots Melted . | . . . Combat Hostiles . | . . . Parts Melted 2 | . 2 . Heat Transferred 1472 | . 975 497 Parts Sabotaged . | . . . Parts Stolen . | . . . Parts Stripped . | . . . Power Chain Reactions . | . . . Alert | -11 -10 -10 ------- Run | Yrd Mat Min Peak Influence 118 | . 115 118 Initial . | . . . Average 34 | . 25 51 Maximum Alert Level . | . . . Low Security (%) 100 | 100 100 100 Level 1 . | . . . Level 2 . | . . . Level 3 . | . . . Level 4 . | . . . Level 5 . | . . . High Security . | . . . Max Security . | . . . Squads Dispatched . | . . . Investigation . | . . . Extermination . | . . . Reinforcement . | . . . Assault . | . . . Garrison . | . . . Intercept . | . . . Searches Triggered . | . . . Construction Impeded . | . . . Haulers Reinforced . | . . . Active Scanning Responses . | . . . Cargo Convoy Interrupts . | . . . Stealth | -11 -10 -10 --------- Run | Yrd Mat Min Distress Signals 2 | . 1 1 Communications Jammed . | . . . Distress Signals . | . . . Times Spotted 32 | . 18 14 Peak Tracking Total 3 | . 3 3 Tactical Retreats 4 | . 1 3 Traps | -11 -10 -10 ------- Run | Yrd Mat Min Traps Triggered . | . . . Indirectly . | . . . Trap Hack Attempts . | . . . Triggered . | . . . Disarmed . | . . . Reprogrammed . | . . . Reused . | . . . Traps Extracted . | . . . Installed . | . . . Triggered . | . . . Machines | -11 -10 -10 ---------- Run | Yrd Mat Min Machines Disabled . | . . . Max in Single Turn . | . . . Machines Repaired . | . . . Machines Dismantled . | . . . Machines Sabotaged . | . . . Overloaded Fab Kills . | . . . Hacking | -11 -10 -10 --------- Run | Yrd Mat Min Machines Accessed 2 | . 2 . Terminals 2 | . 2 . Fabricators . | . . . Repair Stations . | . . . Recycling Units . | . . . Scanalyzers . | . . . Garrison Access . | . . . Total Hacks 8 | . 8 . Successful 4 | . 4 . Failed 4 | . 4 . Catastrophic . | . . . Database Lockouts . | . . . Manual 1 | . 1 . Terminals 8 | . 8 . Fabricators . | . . . Repair Stations . | . . . Recycling Units . | . . . Scanalyzers . | . . . Garrison Access . | . . . Terminal Hacks 4 | . 4 . Record 2 | . 2 . Branch Access Points 1 | . 1 . Locate Traps 1 | . 1 . Fabricator Hacks . | . . . Repair Station Hacks . | . . . Recycling Unit Hacks . | . . . Scanalyzer . | . . . Garrison Access Hacks . | . . . Unauthorized Hacks . | . . . Terminals . | . . . Fabricators . | . . . Repair Stations . | . . . Recycling Units . | . . . Scanalyzers . | . . . Garrison Access . | . . . Data Cores Recovered . | . . . Used . | . . . Hacking Detections 1 | . 1 . Full Trace Events . | . . . Feedback Events . | . . . Feedback Blocked . | . . . Robot Schematics Acquired . | . . . Robots Built . | . . . Authchips . | . . . Time . | . . . Total Robot Build Rating . | . . . Part Schematics Acquired . | . . . Parts Built . | . . . Authchips . | . . . Time . | . . . Total Part Build Rating . | . . . Parts Repaired . | . . . Time . | . . . Parts Recycled . | . . . Recycled Matter . | . . . Retrieved Matter . | . . . Retrieved Components . | . . . Parts Scanalyzed . | . . . Part Schematics Acquired . | . . . Parts Damaged . | . . . Bothacking | -11 -10 -10 ------------ Run | Yrd Mat Min Used RIF Installer . | . . . Robots Hacked . | . . . Non-combat . | . . . Combat . | . . . Robot Hacks Applied . | . . . Relay Couplers Released . | . . . Fabnet Peak Effective % . | . . . Robots Rewired . | . . . Allies Hacked . | . . . Hacks Repelled . | . . . Allies | -11 -10 -10 -------- Run | Yrd Mat Min Total Allies 3 | . . 3 Largest Group 2 | . . 2 Highest-Rated Group 50 | . . 50 Highest-Rated Ally 31 | . . 31 Total Orders . | . . . Ally Attacks 9 | . . 9 Total Damage 108 | . . 108 Kills 2 | . . 2 Allies Corrupted . | . . . Allies Melted . | . . . Intel | -11 -10 -10 ------- Run | Yrd Mat Min Robot Analysis Total . | . . . Derelict Logs Recovered 1 | . . 1 Drone Launches . | . . . Drone Recoveries . | . . . Exploration | -11 -10 -10 ------------- Run | Yrd Mat Min Turns Passed 3081 | 73 1829 1179 Spaces Moved 1245 | 42 742 461 Core 7 | 7 . . Treads 1219 | 35 723 461 Legs 19 | . 19 . Wheels . | . . . Hover . | . . . Flight . | . . . Fastest Speed 50 | 50 160 240 Average Speed 229 | 141 228 240 Slowest Speed 260 | 160 260 240 Overloaded Moves . | . . . Propulsion Burnouts . | . . . Robots Hopped . | . . . Cave-ins Triggered . | . . . Exploration Rate (%) 55 | 3 91 71 Regions Visited 2 Branch Regions 1 Pre-discovered Areas 1 | . . 1 Known Exits Taken 1 | . 1 . Unknown Exits Taken 1 | 1 . . Scrap Searched 1 | . . 1 Spaces Dug . | . . . Terrain Destroyed . | . . . Melee . | . . . Projectile . | . . . AOE . | . . . Terrain Rammed . | . . . Walls Destroyed . | . . . Machines Disabled . | . . . Actions | -11 -10 -10 --------- Run | Yrd Mat Min Total 1361 | 53 811 497 Wait 20 | . 13 7 Move 1243 | 41 741 461 Hop . | . . . Pick Up 17 | 7 8 2 Fast Attach 10 | 5 2 3 Attach 5 | . 5 . Detach 5 | . 3 2 Swap 7 | . 4 3 Drop 2 | . 2 . Fire 52 | . 33 19 Melee . | . . . Ram . | . . . Kick . | . . . Crush . | . . . Escape Stasis . | . . . Rewire . | . . . Trap . | . . . Miscellaneous . | . . . Route ------- -11/Scrapyard -10/Materials (discovered 3 exits: [*Mat x2] / *Min) -10/Mines History --------- Turn | Location | Event 7 | -11/Scrapyard | Discovered new exit (range 15) 74 | -11/Scrapyard | Entered Materials 123 | -10/Materials | Identified exit to Mines 314 | -10/Materials | Build established: Mutant 870 | -10/Materials | Discovered new exit (range 6) 1008 | -10/Materials | Core integrity fell below 50% 1433 | -10/Materials | Discovered new exit (range 11) 1903 | -10/Materials | Entered Mines 2169 | -10/Mines | Learned location of Zion (-7) 2198 | -10/Mines | Received a Mining Laser from a helpful Derelict 2314 | -10/Mines | Core integrity fell below 20% 2403 | -10/Mines | Assembled infested the area 3082 | -10/Mines | Destroyed by S-10 Pest with Light Assault Rifle Last Messages --------------- 02450_ K-01 Serf destroyed. 02467_ OS-ZJP(g): "You look like you can take it from here!" 02467_ OS-ZJP(g) slips back into the shadows. 02486_ S-10 Pest destroyed. 02502_ Acquired 11 matter. 02504_ Acquired 12 matter. 02534_ K-01 Serf collects debris. 02606_ A pair of derelicts emerge from the shadows: "We're, um, lost. You wouldn't happen to know the way out of here, would you?" 02796_ K-01 Serf collects debris. 02823_ T-07 Excavator destroyed. 02827_ 2U-7FM(g) destroyed. 02835_ U-05 Engineer destroyed. 02868_ G-34 Mercenary destroyed. 02870_ K-01 Serf collects debris. 02878_ Acquired 6 matter. 02878_ K-01 Serf collects debris. 02886_ K-01 Serf destroyed. 02948_ Acquired 2 matter. 03080_ S-10 Pest destroyed. Map ----- +----------------------------------------------------+ | | | | | | | | | | | | | | | | | | | | | | | ??????????????????????????????????????? | | ???????????????????????########???????? | | ##????????????????????## ##??????? | | ##???????????????????# ##?????? | | #?????####?????????## #?????? | | #????## ##????????# #?????? | | #???## #????????# ##?????? | | ##?## #????????# ####??????? | | ### ##???????# """ ##?????????? | | ######### """ #??????????? | | """ ##?????????? | | ##????????? | | ###### ##???????? | | #????## #???????? | | #?????### @[* #???????? | | ##???????###ss ##???????? | | ###??????????#=###????????? | | ##???????????? #??????????? | | # #?????????????# #??????????? | | ## #???????????? ??????????? | | ?# #??????????? ??????????? | | ? #?????????? ""??????????? | | ????????? """?????????? | | ###???????? """?????????? | | # ##?????????? ????????????? | | # ##???????????#????????????? | | ## ## ##?????????????????????????? | | ?# ##?###?#####????????????????????? | | ?## ##??????# ##???????????????????? | | ???###???????# ##??????????????????? | | ??????????????# #??????????????????? | | ???????????????# #??????????????????? | | ???????????????# #??????????????????? | | ??????????????## ##??????????????????? | | ####?########## #???????????????????? | | ### ## ##???????????????????? | | #????????????????????? | | ### ## #????????????????????? | | ##?##### #????????????????????? | +----------------------------------------------------+ Best States ------------- Heat Dissipation 35 Energy Generation 10 Energy Capacity 250 Matter Stores 300 Matter Capacity 300 Sight Range 16 Terrain Scan Density 10 Core Shielding 20 Evasion (%) 40 Recoil Reduction 2 Item Schematics ----------------- None Robot Schematics ------------------ None Fabricated ------------ Nothing Alien Tech Used ----------------- None Achievements -------------- None Challenges ------------ None Game ------ Seed ParticleBladePropulsion Manual? 0 Play Time 00:12:33 Cumulative 28.7 hours Start 2024.10.27 @ 19:43:42 End 2024.10.27 @ 19:55:11 Sessions 1 Manual Loads 0 Difficulty Rogue Special Mode None Game No. 39 Rogue 32 Adventurer 0 Explorer 7 Win Type - Total 1 Types 1/0/0/0/0/0/0/0/0 Lore% 11 Gallery% 21 Achievement% 26 Wizard Run 0 Options --------- Layout 0 ASCII 0 Keyboard 0 Movement Mouse Keybinds 0 Fullscreen 1 Font 24/Terminus Map View 76x50 Zoom Use 0% Tactical HUD 1 Map Filters NONE Filters NONE Steam 1 RUN: b84c5050-e618-409a-8a56-be54d22127f7